fUST/lending_fUST_20250515
["ID","MTS","AMOUNT","RATE_DAILY","PERIOD"]
[361155637,1747311886335,-500.0,0.00032876,120]
[361155638,1747311886358,-500.0,0.00032876,120]
[361155639,1747311886379,-500.0,0.00032876,120]
[361155640,1747311886403,-240.49709731,0.00032876,120]
[361155641,1747311886427,-242.6636298,0.00032877,120]
[361155642,1747311886452,-279.0,0.00032877,120]
[361155643,1747311886474,-300.0,0.00032877,120]
[361155644,1747311886496,-200.0,0.00032877,120]
[361155645,1747311886522,-200.0,0.00032877,120]
[361155646,1747311886544,-569.18,0.00032965,64]
[361155647,1747311886570,-832.05999901,0.00033,120]
[361155648,1747311886592,-353638.88537554,0.00033,90]
[361155649,1747311886615,-34385.09331479,0.00033,90]
[361155650,1747311886637,-200.0,0.000331,120]
[361155651,1747311886661,-569.18,0.00033165,54]
[361155652,1747311886685,-569.18,0.00033365,82]
[361155653,1747311886709,-357.25704,0.000335,120]
[361155654,1747311886732,-200.0,0.000335,120]
[361155655,1747311886754,-569.18,0.00033565,86]
[361155656,1747311886777,-569.18,0.00033765,43]
[361155657,1747311886799,-3000.0,0.00033896,60]
[361155658,1747311886822,-569.18,0.00033965,33]
[361155659,1747311886847,-1500.0,0.00034,120]
[361155660,1747311886870,-10000.0,0.00034,30]
[361155661,1747311886894,-1000.0,0.00034,120]
[361155662,1747311886919,-200.0,0.00034,120]
[361155663,1747311886941,-230.0,0.00034,120]
[361155664,1747311886969,-4085.40984875,0.00034,30]
[361155665,1747311886992,-151.36397898,0.00034018,30]
[361155666,1747311887017,-151.0,0.00034087,30]
[361155667,1747311887042,-569.18,0.00034165,71]
[361155668,1747311887066,-569.18,0.00034365,63]
[361155669,1747311887090,-151.23398685,0.0003447,30]
[361155670,1747311887114,-773028.13965026,0.000345,120]
[361155671,1747311892509,-2226971.86034974,0.000345,120]
[361155672,1747311892534,-2563.48,0.000345,60]
[361155673,1747311892559,-248630.65398468,0.000345,120]
[361155674,1747311892584,-569.18,0.00034565,67]
[361155675,1747311892610,-200.0,0.000347,120]
[361155676,1747311892635,-9382.61,0.000347,120]
[361155677,1747311892660,-569.18,0.00034765,77]
[361155678,1747311892684,-50560.90313228,0.0003484,120]
[361155679,1747311892714,-50000.0,0.0003485,120]
[361155680,1747311892738,-500.0,0.000349,30]
[361155681,1747311892764,-569.18,0.00034965,75]
[361155682,1747311892789,-3000.0,0.00034992,60]
[361155683,1747311892816,-150.0,0.00035,69]
[361155684,1747311892841,-266.74540746,0.00035,120]
[361155685,1747311892867,-550.0,0.00035,120]
[361155686,1747311892892,-678.28664155,0.00035,120]
[361155687,1747311892914,-210.66883562,0.00035,30]
[361155688,1747311892938,-219.13383751,0.00035,30]
[361155689,1747311892967,-376.0,0.00035,120]
[361155690,1747311892992,-6222.0,0.00035,120]
[361155691,1747311893016,-5000.0,0.00035,30]
[361155692,1747311893038,-5000.0,0.00035,30]
[361155693,1747311893061,-5000.0,0.00035,30]
[361155694,1747311893083,-5000.0,0.00035,30]
[361155695,1747311893105,-5000.0,0.00035,30]
[361155696,1747311893127,-5000.0,0.00035,30]
[361155697,1747311893150,-5000.0,0.00035,30]
[361155698,1747311893175,-5000.0,0.00035,30]
[361155699,1747311893198,-5000.0,0.00035,30]
[361155700,1747311893227,-5000.0,0.00035,30]
[361155701,1747311893250,-5000.0,0.00035,30]
[361155702,1747311893274,-5000.0,0.00035,30]
[361155703,1747311893297,-5000.0,0.00035,30]
[361155704,1747311893320,-5000.0,0.00035,30]
[361155705,1747311893344,-5000.0,0.00035,30]
[361155706,1747311893369,-5000.0,0.00035,30]
[361155707,1747311893392,-5000.0,0.00035,30]
[361155708,1747311893416,-5000.0,0.00035,30]
[361155709,1747311893441,-5000.0,0.00035,30]
[361155710,1747311893469,-5000.0,0.00035,30]
[361155711,1747311893494,-4427.05,0.00035,30]
[361155712,1747311893518,-5000.0,0.00035,30]
[361155713,1747311893541,-5000.0,0.00035,30]
[361155714,1747311893569,-1575.71,0.00035,30]
[361155715,1747311893592,-27034.88815487,0.00035,30]
[361155716,1747311893615,-254772.46965629,0.00035,30]
[361155717,1747311900921,-9872.27375976,0.00035,30]
[361155718,1747311900950,-357.25704,0.000351,120]
[361155719,1747311900980,-200.0,0.000351,120]
[361155720,1747311901003,-569.18,0.00035165,58]
[361155721,1747311901028,-569.18,0.00035365,44]
[361155722,1747311901053,-569.18,0.00035565,57]
[361155723,1747311910666,207.4,0.00034999,30]
[361155725,1747311988003,907.46124606,0.00028247,30]
[361155740,1747312043572,160.0,0.00028247,30]
[361155741,1747312044057,160.0,0.00028247,30]
[361155742,1747312044416,160.0,0.00028247,30]
[361155743,1747312044848,160.0,0.00028247,30]
[361155744,1747312045221,304.7,0.00028247,30]
[361155745,1747312047630,-5000.0,0.00013292,14]
[361155746,1747312047653,-175.358504,0.00013699,2]
[361155749,1747312124809,3119.56438883,0.00015,2]
[361155750,1747312125886,230.03491073,0.00028263,120]
[361155815,1747312232449,-267.0683457,0.00015418,2]
[361155817,1747312232460,-5000.0,0.00016175,2]
[361155819,1747312232469,-415.08707857,0.00016319,2]
[361155821,1747312232479,-394.99345916,0.00016338,2]
[361155823,1747312232489,-415.08707855,0.00016395,2]
[361155825,1747312232499,-1200.0,0.00016416,2]
[361155828,1747312232508,-300.0,0.00016417,2]
[361155831,1747312232519,-300.0,0.00016417,2]
[361155834,1747312232529,-300.0,0.00016417,2]
[361155836,1747312232539,-28200.8561005,0.00016418,2]
[361155980,1747312239714,-2197.34116198,0.00016418,2]
[361155983,1747312239728,-14513.0796954,0.00016418,2]
[361155985,1747312239737,-5000.0,0.00016419,2]
[361155987,1747312239747,-4100.53854517,0.00016419,2]
[361155989,1747312239759,-620.79606626,0.00016419,2]
[361156361,1747312243751,-278.66538857,0.00016419,2]
[361156363,1747312243762,-5000.0,0.00016419,2]
[361156365,1747312243771,-5000.0,0.00016419,2]
[361156367,1747312243781,-3405.889288,0.00016419,2]
[361156641,1747312246504,-1210.55707798,0.00016255,2]
[361156654,1747312246618,-3789.44292202,0.00016255,2]
[361156656,1747312246628,-1594.110712,0.00016419,2]
[361156658,1747312246637,-151.0,0.00016428,2]
[361156660,1747312246647,-221.36387853,0.00016437,2]
[361156662,1747312246656,-500.0,0.00016437,2]
[361156664,1747312246665,-548.25353974,0.00016437,2]
[361156666,1747312246675,-500.0,0.00016437,2]
[361156668,1747312246684,-500.0,0.00016437,2]
[361156670,1747312246694,-500.0,0.00016437,2]
[361156672,1747312246704,-500.0,0.00016437,2]
[361156675,1747312246713,-500.0,0.00016437,2]
[361156676,1747312246722,-269.84486432,0.00016437,2]
[361156678,1747312246732,-622.57199775,0.00016437,2]
[361156680,1747312246742,-500.0,0.00016437,2]
[361156682,1747312246751,-500.0,0.00016437,2]
[361156684,1747312246760,-436.71765854,0.00016437,2]
[361156686,1747312246769,-500.0,0.00016437,2]
[361156688,1747312246778,-500.0,0.00016437,2]
[361156690,1747312246787,-367.70039971,0.00016437,2]
[361156692,1747312246797,-500.0,0.00016437,2]
[361156694,1747312246806,-447.55951624,0.00016437,2]
[361156696,1747312246815,-400.0,0.00016438,2]
[361156698,1747312246824,-450.0,0.00016438,2]
[361156701,1747312246836,-450.0,0.00016438,2]
[361156702,1747312246845,-450.0,0.00016438,2]
[361156704,1747312246854,-450.0,0.00016438,2]
[361156707,1747312246864,-450.0,0.00016438,2]
[361156709,1747312246874,-450.0,0.00016438,2]
[361156710,1747312246885,-450.0,0.00016438,2]
[361156712,1747312246895,-450.0,0.00016438,2]
[361156714,1747312246904,-450.0,0.00016438,2]
[361156716,1747312246914,-450.0,0.00016438,2]
[361156719,1747312246924,-450.0,0.00016438,2]
[361156721,1747312246934,-450.0,0.00016438,2]
[361156723,1747312246943,-450.0,0.00016438,2]
[361156725,1747312246952,-450.0,0.00016438,2]
[361156727,1747312246961,-500.0,0.00016438,2]
[361156729,1747312246970,-450.0,0.00016438,2]
[361156731,1747312246979,-450.0,0.00016438,2]
[361156733,1747312246988,-450.0,0.00016438,2]
[361156734,1747312246998,-407.74949268,0.00016438,2]
[361156736,1747312247007,-500.0,0.00016438,2]
[361156739,1747312247017,-450.0,0.00016438,2]
[361156741,1747312247026,-450.0,0.00016438,2]
[361156743,1747312247036,-450.0,0.00016438,2]
[361156745,1747312247045,-450.0,0.00016438,2]
[361156747,1747312247055,-450.0,0.00016438,2]
[361156749,1747312247064,-450.0,0.00016438,2]
[361156751,1747312247073,-450.0,0.00016438,2]
[361156753,1747312247083,-450.0,0.00016438,2]
[361156755,1747312247093,-450.0,0.00016438,2]
[361156756,1747312247103,-403.84699663,0.00016438,2]
[361156759,1747312247112,-450.0,0.00016438,2]
[361156761,1747312247121,-450.0,0.00016438,2]
[361156763,1747312247131,-450.0,0.00016438,2]
[361156765,1747312247140,-500.0,0.00016438,2]
[361156766,1747312247150,-450.0,0.00016438,2]
[361156769,1747312247159,-502.47863682,0.00016438,2]
[361156771,1747312247169,-450.0,0.00016438,2]
[361156772,1747312247179,-450.0,0.00016438,2]
[361156774,1747312247188,-450.0,0.00016438,2]
[361156776,1747312247198,-466.4456149,0.00016438,2]
[361156778,1747312247207,-576.73581149,0.00016438,2]
[361156780,1747312247217,-450.0,0.00016438,2]
[361156782,1747312247226,-450.0,0.00016438,2]
[361156784,1747312247236,-450.0,0.00016438,2]
[361156786,1747312247246,-450.0,0.00016438,2]
[361156788,1747312247258,-403.90594273,0.00016438,2]
[361156790,1747312247271,-594.68687416,0.00016438,2]
[361156792,1747312247285,-450.0,0.00016438,2]
[361156794,1747312247295,-576.77246464,0.00016438,2]
[361156797,1747312247306,-408.82001468,0.00016438,2]
[361156799,1747312247316,-450.0,0.00016438,2]
[361156801,1747312247327,-450.0,0.00016438,2]
[361156802,1747312247342,-450.0,0.00016438,2]
[361156804,1747312247351,-450.0,0.00016438,2]
[361156806,1747312247361,-450.0,0.00016438,2]
[361156808,1747312247371,-450.0,0.00016438,2]
[361156810,1747312247381,-450.0,0.00016438,2]
[361156813,1747312247391,-450.0,0.00016438,2]
[361156815,1747312247401,-450.0,0.00016438,2]
[361156816,1747312247411,-450.0,0.00016438,2]
[361156819,1747312247420,-450.0,0.00016438,2]
[361156821,1747312247431,-450.0,0.00016438,2]
[361156823,1747312247440,-450.0,0.00016438,2]
[361156825,1747312247450,-450.0,0.00016438,2]
[361156827,1747312247462,-450.0,0.00016438,2]
[361156829,1747312247475,-382.12770222,0.00016438,2]
[361156831,1747312247493,-450.0,0.00016438,2]
[361156833,1747312247505,-400.64241899,0.00016438,2]
[361156835,1747312247515,-450.0,0.00016438,2]
[361156837,1747312247526,-450.0,0.00016438,2]
[361156839,1747312247539,-450.0,0.00016438,2]
[361156841,1747312247549,-450.0,0.00016438,2]
[361156843,1747312247558,-450.0,0.00016438,2]
[361156845,1747312247568,-450.0,0.00016438,2]
[361156847,1747312247577,-450.0,0.00016438,2]
[361156848,1747312247591,-450.0,0.00016438,2]
[361156850,1747312247606,-450.0,0.00016438,2]
[361156853,1747312247625,-450.0,0.00016438,2]
[361156855,1747312247641,-450.0,0.00016438,2]
[361156857,1747312247652,-450.0,0.00016438,2]
[361156858,1747312247663,-450.0,0.00016438,2]
[361156861,1747312247675,-450.0,0.00016438,2]
[361156863,1747312247685,-450.0,0.00016438,2]
[361156865,1747312247695,-450.0,0.00016438,2]
[361156867,1747312247706,-450.0,0.00016438,2]
[361156869,1747312247716,-450.0,0.00016438,2]
[361156871,1747312247726,-450.0,0.00016438,2]
[361156873,1747312247736,-403.30556391,0.00016438,2]
[361156875,1747312247747,-450.0,0.00016438,2]
[361156877,1747312247757,-402.4125288,0.00016438,2]
[361156879,1747312247768,-402.00609856,0.00016438,2]
[361156881,1747312247779,-228.76,0.00016438,2]
[361156883,1747312247790,-450.0,0.00016438,2]
[361156885,1747312247800,-405.3937239,0.00016438,2]
[361156887,1747312247810,-450.0,0.00016438,2]
[361156888,1747312247820,-450.0,0.00016438,2]
[361156890,1747312247830,-400.19594306,0.00016438,2]
[361156893,1747312247844,-425.64856177,0.00016438,2]
[361161661,1747312340890,160.0,0.00028263,30]
[361161662,1747312341302,160.0,0.00028263,30]
[361161663,1747312341715,220.429999,0.00028263,30]
[361161664,1747312372196,4359.48635659,0.00028263,120]
[361161665,1747312462603,907.46124606,0.00028021,30]
[361161666,1747312503123,536.71837363,0.00028021,31]
[361161667,1747312503165,2542.49011846,0.00028021,120]
[361161669,1747312561302,1084.0,0.00028021,31]
[361161670,1747312561654,1084.0,0.00028021,31]
[361161671,1747312562012,1084.0,0.00028021,31]
[361161672,1747312562372,1084.0,0.00028021,31]
[361161674,1747312640874,160.0,0.00028021,30]
[361161675,1747312641183,160.0,0.00028021,30]
[361161676,1747312641585,160.0,0.00028021,30]
[361161677,1747312641978,160.0,0.00028021,30]
[361161678,1747312642378,304.7,0.00028021,30]
[361161680,1747312672859,3000.0,0.00028021,30]
[361161682,1747312941416,160.0,0.00028052,30]
[361161683,1747312941749,160.0,0.00028052,30]
[361161684,1747312942159,160.0,0.00028052,30]
[361161685,1747312942768,160.0,0.00028052,30]
[361161686,1747312943169,304.7,0.00028052,30]
[361161688,1747313103964,907.672796,0.00027397,120]
[361161690,1747313239656,160.0,0.00028051,30]
[361161691,1747313240105,160.0,0.00028051,30]
[361161692,1747313240494,220.429999,0.00028051,30]
[361161693,1747313271338,301.170498,0.00013699,2]
[361161732,1747313399765,5000.0,0.00015,2]
[361161747,1747313432573,-5000.0,0.00015235,2]
[361161749,1747313432582,-540.893912,0.00015389,2]
[361161751,1747313432592,-427.5448912,0.00015401,2]
[361161753,1747313432601,-349.2695165,0.00015479,2]
[361161755,1747313432610,-598.59631967,0.00016318,2]
[361161757,1747313432621,-829.05875268,0.00016338,2]
[361161759,1747313432630,-652.61296533,0.0001639,2]
[361161761,1747313432639,-829.05875264,0.00016406,2]
[361161763,1747313432648,-300.0,0.00016416,2]
[361161765,1747313432658,-300.0,0.00016417,2]
[361161767,1747313432667,-1200.0,0.00016417,2]
[361161769,1747313432676,-28472.40509646,0.00016418,2]
[361161771,1747313432687,-236.6790923,0.00016418,2]
[361161773,1747313432696,-223.13386681,0.00016418,2]
[361161775,1747313432705,-500.0,0.00016418,2]
[361161778,1747313432718,-500.0,0.00016418,2]
[361161780,1747313432728,-500.0,0.00016418,2]
[361161782,1747313432738,-500.0,0.00016418,2]
[361161784,1747313432747,-500.0,0.00016418,2]
[361161786,1747313432757,-500.0,0.00016418,2]
[361161788,1747313432767,-500.0,0.00016418,2]
[361161790,1747313432776,-515.45074795,0.00016418,2]
[361161792,1747313432786,-500.0,0.00016418,2]
[361161794,1747313432796,-500.0,0.00016418,2]
[361161796,1747313432806,-430.93151875,0.00016418,2]
[361161798,1747313432818,-545.85033235,0.00016418,2]
[361161800,1747313432827,-500.0,0.00016418,2]
[361161802,1747313432837,-500.0,0.00016418,2]
[361161804,1747313432846,-500.0,0.00016418,2]
[361161806,1747313432856,-500.0,0.00016418,2]
[361161808,1747313432866,-500.0,0.00016418,2]
[361161810,1747313432876,-416.24285177,0.00016418,2]
[361161812,1747313432886,-5000.0,0.00016419,2]
[361161814,1747313432896,-151.0,0.00016419,2]
[361161816,1747313432906,-5000.0,0.00016419,2]
[361161818,1747313432915,-5000.0,0.00016419,2]
[361161820,1747313432924,-5000.0,0.00016419,2]
[361161822,1747313432933,-5000.0,0.00016419,2]
[361161824,1747313432942,-207.4,0.00016419,2]
[361161826,1747313432952,-151.0,0.00016428,2]
[361161828,1747313432961,-215.25677807,0.00016428,2]
[361161830,1747313432970,-5000.0,0.00016428,2]
[361161832,1747313432980,-4388.69814256,0.00016428,2]
[361161834,1747313432989,-500.0,0.00016437,2]
[361161836,1747313432999,-500.0,0.00016437,2]
[361161838,1747313433008,-500.0,0.00016437,2]
[361161840,1747313433018,-280.20387696,0.00016437,2]
[361161842,1747313433027,-500.0,0.00016437,2]
[361161844,1747313433037,-500.0,0.00016437,2]
[361161846,1747313433050,-500.0,0.00016437,2]
[361161848,1747313433060,-343.44781256,0.00016437,2]
[361161850,1747313433070,-500.0,0.00016437,2]
[361161852,1747313433083,-500.0,0.00016437,2]
[361161854,1747313433093,-500.0,0.00016437,2]
[361161857,1747313433104,-500.0,0.00016437,2]
[361161858,1747313433114,-500.0,0.00016437,2]
[361161860,1747313433124,-6814.61796249,0.00016438,2]
[361161862,1747313433133,-5476.96251569,0.00016438,3]
[361161864,1747313433143,-450.0,0.00016438,2]
[361161866,1747313433153,-450.0,0.00016438,2]
[361161868,1747313433163,-401.12213207,0.00016438,2]
[361161871,1747313433175,-450.0,0.00016438,2]
[361161873,1747313433185,-450.0,0.00016438,2]
[361161875,1747313433195,-450.0,0.00016438,2]
[361161877,1747313433205,-450.0,0.00016438,2]
[361161879,1747313433214,-227.63614256,0.00016438,2]
[361161881,1747313433224,-450.0,0.00016438,2]
[361161883,1747313433234,-450.0,0.00016438,2]
[361161885,1747313433243,-450.0,0.00016438,2]
[361161887,1747313433253,-450.0,0.00016438,2]
[361161889,1747313433263,-450.0,0.00016438,2]
[361161891,1747313433272,-204.08226685,0.00016438,2]
[361161893,1747313433282,-450.0,0.00016438,2]
[361161895,1747313433292,-450.0,0.00016438,2]
[361161897,1747313433302,-450.0,0.00016438,2]
[361161899,1747313433312,-450.0,0.00016438,2]
[361161900,1747313433321,-450.0,0.00016438,2]
[361161902,1747313433331,-450.0,0.00016438,2]
[361161904,1747313433341,-450.0,0.00016438,2]
[361161905,1747313433350,-450.0,0.00016438,2]
[361161907,1747313433360,-450.0,0.00016438,2]
[361161909,1747313433370,-450.0,0.00016438,2]
[361161911,1747313433379,-450.0,0.00016438,2]
[361161913,1747313433389,-450.0,0.00016438,2]
[361161915,1747313433399,-450.0,0.00016438,2]
[361161917,1747313433408,-450.0,0.00016438,2]
[361161919,1747313433418,-450.0,0.00016438,2]
[361161921,1747313433427,-450.0,0.00016438,2]
[361161923,1747313433437,-450.0,0.00016438,2]
[361161925,1747313433446,-300.0,0.00016438,2]
[361161927,1747313433456,-450.0,0.00016438,2]
[361161929,1747313433466,-214.01649776,0.00016438,2]
[361161931,1747313433476,-450.0,0.00016438,2]
[361161933,1747313433485,-407.32592892,0.00016438,2]
[361161935,1747313433495,-401.3471491,0.00016438,2]
[361161937,1747313433504,-401.4987925,0.00016438,2]
[361161939,1747313433515,-450.0,0.00016438,2]
[361161941,1747313433526,-450.0,0.00016438,2]
[361161943,1747313433536,-450.0,0.00016438,2]
[361161945,1747313433547,-450.0,0.00016438,2]
[361161947,1747313433558,-450.0,0.00016438,2]
[361161949,1747313433568,-450.0,0.00016438,2]
[361161951,1747313433578,-450.0,0.00016438,2]
[361161953,1747313433588,-450.0,0.00016438,2]
[361161955,1747313433598,-450.0,0.00016438,2]
[361161957,1747313433608,-450.0,0.00016438,2]
[361161959,1747313433618,-372.80402125,0.00016438,2]
[361161962,1747313433634,-77.19597875,0.00016438,2]
[361161964,1747313433643,-441.56771135,0.00016438,2]
[361162047,1747313434490,-8.43228865,0.00016438,2]
[361162050,1747313434502,-450.0,0.00016438,2]
[361162052,1747313434513,-450.0,0.00016438,2]
[361162054,1747313434523,-450.0,0.00016438,2]
[361162056,1747313434532,-450.0,0.00016438,2]
[361162058,1747313434543,-499.37744696,0.00016438,2]
[361162060,1747313434553,-310.0,0.00016438,2]
[361162062,1747313434564,-450.0,0.00016438,2]
[361162064,1747313434574,-450.0,0.00016438,2]
[361162067,1747313434584,-450.0,0.00016438,2]
[361162070,1747313434594,-450.0,0.00016438,2]
[361162073,1747313434604,-400.25156246,0.00016438,2]
[361162076,1747313434613,-450.0,0.00016438,2]
[361162079,1747313434623,-400.91451024,0.00016438,2]
[361162082,1747313434633,-450.0,0.00016438,2]
[361162085,1747313434643,-503.87742256,0.00016438,2]
[361162088,1747313434653,-450.0,0.00016438,2]
[361162091,1747313434663,-400.53948181,0.00016438,2]
[361162093,1747313434673,-402.01186613,0.00016438,2]
[361162095,1747313434686,-450.0,0.00016438,2]
[361162097,1747313434696,-404.14050957,0.00016438,2]
[361162099,1747313434706,-301.97363187,0.00016438,2]
[361162101,1747313434716,-450.0,0.00016438,2]
[361162103,1747313434725,-450.0,0.00016438,2]
[361162105,1747313434735,-401.57699718,0.00016438,2]
[361162107,1747313434745,-450.0,0.00016438,2]
[361162109,1747313434755,-450.0,0.00016438,2]
[361162111,1747313434766,-450.0,0.00016438,2]
[361162113,1747313434776,-401.08444501,0.00016438,2]
[361162115,1747313434785,-450.0,0.00016438,2]
[361162118,1747313434800,-450.0,0.00016438,2]
[361162120,1747313434811,-450.0,0.00016438,2]
[361162122,1747313434824,-450.0,0.00016438,2]
[361162124,1747313434834,-277.27178343,0.00016438,2]
[361162126,1747313434844,-448.36412873,0.00016438,2]
[361162127,1747313434853,-450.0,0.00016438,2]
[361162129,1747313434863,-450.0,0.00016438,2]
[361162131,1747313434873,-402.65010271,0.00016438,2]
[361162134,1747313434883,-450.0,0.00016438,2]
[361162135,1747313434894,-500.43603256,0.00016438,2]
[361162138,1747313434904,-509.58259274,0.00016438,2]
[361162139,1747313434913,-450.0,0.00016438,2]
[361162141,1747313434923,-400.62566055,0.00016438,2]
[361162143,1747313434933,-450.0,0.00016438,2]
[361162145,1747313434942,-450.0,0.00016438,2]
[361162148,1747313434952,-486.09814407,0.00016438,2]
[361162150,1747313434961,-450.0,0.00016438,2]
[361162151,1747313434970,-401.34113592,0.00016438,2]
[361162153,1747313434980,-450.0,0.00016438,2]
[361162156,1747313434990,-402.13872998,0.00016438,2]
[361162158,1747313434999,-409.02315553,0.00016438,2]
[361162160,1747313435008,-401.63775207,0.00016438,2]
[361162162,1747313435018,-483.56291942,0.00016438,2]
[361162163,1747313435027,-450.0,0.00016438,2]
[361162165,1747313435037,-450.0,0.00016438,2]
[361162167,1747313435049,-400.60979183,0.00016438,2]
[361162169,1747313435059,-401.28251717,0.00016438,2]
[361162171,1747313435068,-450.0,0.00016438,2]
[361162173,1747313435077,-400.92012363,0.00016438,2]
[361162175,1747313435086,-402.04607661,0.00016438,2]
[361162177,1747313435097,-450.0,0.00016438,2]
[361162179,1747313435106,-402.08733713,0.00016438,2]
[361162181,1747313435116,-400.91268128,0.00016438,2]
[361162183,1747313435125,-401.70777653,0.00016438,2]
[361162185,1747313435135,-478.87737622,0.00016438,2]
[361162187,1747313435144,-401.31290122,0.00016438,2]
[361162189,1747313435154,-402.38233488,0.00016438,2]
[361162191,1747313435163,-206.73654446,0.00016438,2]
[361162193,1747313435173,-403.13312777,0.00016438,2]
[361162195,1747313435182,-450.0,0.00016438,2]
[361162197,1747313435192,-402.22366325,0.00016438,2]
[361162199,1747313435202,-403.44347559,0.00016438,2]
[361162201,1747313435211,-450.0,0.00016438,2]
[361162203,1747313435221,-1003.30861329,0.00016438,2]
[361162205,1747313435230,-504.06427936,0.00016438,2]
[361162207,1747313435240,-450.0,0.00016438,2]
[361162209,1747313435249,-401.50317887,0.00016438,2]
[361162211,1747313435258,-425.08583795,0.00016438,2]
[361162213,1747313435268,-450.0,0.00016438,2]
[361162215,1747313435278,-450.0,0.00016438,2]
[361162217,1747313435287,-450.0,0.00016438,2]
[361162219,1747313435298,-401.79667671,0.00016438,2]
[361162221,1747313435307,-404.49785513,0.00016438,2]
[361162223,1747313435317,-401.23941587,0.00016438,2]
[361162225,1747313435326,-401.38747886,0.00016438,2]
[361162227,1747313435336,-450.0,0.00016438,2]
[361162229,1747313435345,-402.05383914,0.00016438,2]
[361162231,1747313435355,-401.9682729,0.00016438,2]
[361162234,1747313435368,-400.43357852,0.00016438,2]
[361162236,1747313435378,-450.0,0.00016438,2]
[361162238,1747313435388,-450.0,0.00016438,2]
[361162240,1747313435397,-400.42782848,0.00016438,2]
[361162242,1747313435407,-450.0,0.00016438,2]
[361162244,1747313435416,-402.0455979,0.00016438,2]
[361162246,1747313435425,-450.0,0.00016438,2]
[361162248,1747313435434,-401.4289679,0.00016438,2]
[361162250,1747313435444,-400.7588598,0.00016438,2]
[361162252,1747313435453,-402.31935392,0.00016438,2]
[361162254,1747313435463,-450.0,0.00016438,2]
[361162256,1747313435472,-402.66735484,0.00016438,2]
[361162258,1747313435482,-450.0,0.00016438,2]
[361162260,1747313435491,-162.33793996,0.00016438,2]
[361162262,1747313435500,-450.0,0.00016438,2]
[361162264,1747313435509,-405.08729327,0.00016438,2]
[361162266,1747313435519,-400.78012797,0.00016438,2]
[361162268,1747313435529,-386.5868567,0.00016438,2]
[361162270,1747313435539,-401.31931123,0.00016438,2]
[361162272,1747313435549,-365.57899307,0.00016438,2]
[361162274,1747313435559,-450.0,0.00016438,2]
[361162276,1747313435568,-402.00312491,0.00016438,2]
[361162278,1747313435577,-450.0,0.00016438,2]
[361162280,1747313435587,-450.0,0.00016438,2]
[361162282,1747313435597,-450.0,0.00016438,2]
[361162284,1747313435606,-450.0,0.00016438,2]
[361162286,1747313435615,-450.0,0.00016438,2]
[361162288,1747313435625,-400.86206516,0.00016438,2]
[361162307,1747313435788,-450.0,0.00016438,2]
[361162309,1747313435799,-450.0,0.00016438,2]
[361162311,1747313435810,-450.0,0.00016438,2]
[361162313,1747313435821,-400.63538985,0.00016438,2]
[361162315,1747313435831,-450.0,0.00016438,2]
[361162317,1747313435843,-450.0,0.00016438,2]
[361162319,1747313435853,-450.0,0.00016438,2]
[361162321,1747313435863,-400.0,0.00016438,2]
[361162323,1747313435872,-400.0,0.00016438,2]
[361162325,1747313435882,-450.0,0.00016438,2]